[Event "WYCC 2018 G16"]
[Site "Halkidiki"]
[Date "2018.10.21"]
[Round "3"]
[White "Sosa Suarez, Carla Cristina"]
[Black "Sabiani, Chjara"]
[Result "1-0"]
[ECO "B32"]
[WhiteElo "2025"]
[BlackElo "1778"]
[Annotator "NA"]
[PlyCount "75"]
[EventDate "2018.10.20"]
[EventType "swiss"]
[EventCountry "GRE"]
[SourceTitle "playchess.com"]
[Source "ChessBase"]
[SourceQuality "1"]
[TimeControl "40/5400+30:1800+30"]

1. e4 {[%emt 0:00:00]} c5 {[%emt 0:00:00]} 2. Nf3 {[%emt 0:00:00]} Nc6 {[%emt 0:00:00]} 3. d4 {[%emt 0:00:00]} cxd4 {[%emt 0:00:00]} 4. Nxd4 {[%emt 0:00:00]} e5 {[%emt 0:00:00]} 5. Nb5 {[%emt 0:00:12]} d6 {[%emt 0:00:00]} 6. N1c3 {[%emt 0:00:11]} a6 {[%emt 0:00:02]} 7. Na3 {[%emt 0:00:03]} b5 {[%emt 0:00:04]} 8. Nd5 {[%emt 0:00:12]} Nf6 {[%emt 0:00:06]} 9. Bg5 {[%emt 0:02:16]} Be7 {[%emt 0:00:06]} 10. Bxf6 {[%emt 0:00:05]} Bxf6 {[%emt 0:00:08]} 11. c3 {[%emt 0:00:22]} O-O {[%emt 0:01:10]} 12. Nc2 {[%emt 0:00:23]} Bg5 {[%emt 0:00:06]} 13. a4 {[%emt 0:02:04]} bxa4 {[%emt 0:00:16]} 14. Rxa4 {[%emt 0:00:13]} a5 {[%emt 0:00:11]} 15. Bc4 {[%emt 0:00:30]} Kh8 {[%emt 0:02:08]} 16. Nce3 {[%emt 0:01:19]} g6 {[%emt 0:01:57]} 17. h4 {[%emt 0:10:20]} Bxh4 {[%emt 0:02:46]} 18. g3 {[%emt 0:00:04]} Bg5 {[%emt 0:02:49]} 19. f4 {[%emt 0:00:05]} exf4 {[%emt 0:00:22]} 20. gxf4 {[%emt 0:00:05]} Bh4+ {[%emt 0:00:26]} 21. Kf1 {[%emt 0:01:05]} f5 {[%emt 0:24:17]} 22. Bb5 {[%emt 0:23:32]} Ba6 {[%emt 0:09:38]} 23. Bxa6 {[%emt 0:02:16]} Rxa6 {[%emt 0:00:02]} 24. Qd3 {[%emt 0:02:50]} Ra7 {[%emt 0:08:37]} 25. exf5 {[%emt 0:01:06]} Rb7 {[%emt 0:19:30]} 26. Ra2 {[%emt 0:07:08]} g5 {[%emt 0:01:56]} 27. Ng2 {[%emt 0:07:50]} Qd7 {[%emt 0:06:44]} 28. Nde3 {[%emt 0:04:01]} Qf7 {[%emt 0:02:39]} 29. Qxd6 {[%emt 0:22:34]} Rfb8 {[%emt 0:08:27]} 30. Ra1 {[%emt 0:03:40]} Rxb2 {[%emt 0:01:49]} 31. Nxh4 {[%emt 0:03:51]} gxh4 {[%emt 0:01:52]} 32. Qxc6 {[%emt 0:01:38]} Rb1+ {[%emt 0:00:17]} 33. Rxb1 {[%emt 0:00:04]} Rxb1+ {[%emt 0:00:05]} 34. Ke2 {[%emt 0:00:46]} Rb2+ {[%emt 0:02:13]} 35. Kd3 {[%emt 0:01:01]} Rb7 {[%emt 0:01:28]} 36. Qc8+ {[%emt 0:00:45]} Kg7 {[%emt 0:00:12]} 37. Rg1+ {[%emt 0:00:13]} Kh6 {[%emt 0:00:18]} 38. Qc6+ {[%emt 0:00:19]} 1-0

[Event "WYCC 2018 G16"]
[Site "Halkidiki"]
[Date "2018.10.21"]
[Round "3"]
[White "Hercog, Nusa"]
[Black "Hovhannisyan, Mane"]
[Result "0-1"]
[ECO "D30"]
[WhiteElo "2017"]
[BlackElo "1730"]
[Annotator "NA"]
[PlyCount "118"]
[EventDate "2018.10.20"]
[EventType "swiss"]
[EventCountry "GRE"]
[SourceTitle "playchess.com"]
[Source "ChessBase"]
[SourceQuality "1"]
[TimeControl "40/5400+30:1800+30"]

1. d4 {[%emt 0:00:00]} d5 {[%emt 0:00:00]} 2. c4 {[%emt 0:00:00]} e6 3. Nf3 {[%emt 0:00:00]} a6 {[%emt 0:00:00]} 4. c5 {[%emt 0:04:18]} Nf6 {[%emt 0:04:56]} 5. Nc3 {[%emt 0:06:03]} Be7 {[%emt 0:00:06]} 6. Bf4 {[%emt 0:00:22]} O-O {[%emt 0:00:35]} 7. e3 {[%emt 0:00:47]} Ne4 {[%emt 0:00:44]} 8. Qc2 {[%emt 0:08:21]} f5 {[%emt 0:00:45]} 9. h3 {[%emt 0:12:32]} b6 {[%emt 0:11:45]} 10. cxb6 {[%emt 0:02:03]} cxb6 {[%emt 0:00:34]} 11. Bd3 {[%emt 0:02:19]} Nc6 {[%emt 0:10:26]} 12. a3 {[%emt 0:02:02]} Bb7 {[%emt 0:02:13]} 13. O-O {[%emt 0:08:45]} Rc8 {[%emt 0:00:23]} 14. Bxe4 {[%emt 0:07:57]} fxe4 {[%emt 0:00:51]} 15. Ne5 {[%emt 0:03:54]} a5 {[%emt 0:03:46]} 16. Nxc6 {[%emt 0:02:54]} Rxc6 {[%emt 0:00:29]} 17. Qe2 {[%emt 0:02:27]} Qc8 {[%emt 0:00:38]} 18. Qg4 {[%emt 0:01:38]} Ba6 {[%emt 0:04:24]} 19. Rfd1 {[%emt 0:02:08]} Bc4 {[%emt 0:01:48]} 20. f3 {[%emt 0:10:48]} exf3 {[%emt 0:00:27]} 21. Qxf3 {[%emt 0:00:28]} b5 {[%emt 0:01:28]} 22. Qg4 {[%emt 0:03:28]} b4 {[%emt 0:00:29]} 23. axb4 {[%emt 0:00:15]} axb4 {[%emt 0:00:01]} 24. Ra7 {[%emt 0:03:28]} Bf6 {[%emt 0:06:39]} 25. Be5 {[%emt 0:06:40]} Bxe5 {[%emt 0:01:22]} 26. dxe5 {[%emt 0:00:04]} g6 {[%emt 0:04:43]} 27. Ne2 {[%emt 0:02:48]} Bxe2 {[%emt 0:04:50]} 28. Qxe2 {[%emt 0:00:01]} Qb8 {[%emt 0:00:07]} 29. Rda1 {[%emt 0:03:16]} Qxe5 {[%emt 0:00:42]} 30. Qd2 {[%emt 0:00:25]} Qe4 {[%emt 0:00:55]} 31. Rc1 {[%emt 0:00:49]} Rxc1+ {[%emt 0:01:31]} 32. Qxc1 {[%emt 0:00:01]} d4 {[%emt 0:01:09]} 33. Qc7 {[%emt 0:02:03]} Qxe3+ {[%emt 0:00:07]} 34. Kh1 {[%emt 0:00:08]} Rf1+ {[%emt 0:00:14]} 35. Kh2 {[%emt 0:00:07]} Qf4+ {[%emt 0:00:25]} 36. Qxf4 {[%emt 0:00:13]} Rxf4 {[%emt 0:00:02]} 37. Kg3 {[%emt 0:00:26]} e5 {[%emt 0:00:34]} 38. Re7 {[%emt 0:00:49]} Re4 {[%emt 0:00:08]} 39. Rb7 {[%emt 0:01:27]} Re3+ {[%emt 0:00:16]} 40. Kf2 {[%emt 0:00:00]} b3 {[%emt 0:00:00]} 41. Re7 {[%emt 0:01:42]} h5 {[%emt 0:06:09]} 42. Rd7 {[%emt 0:02:28]} Re4 {[%emt 0:00:53]} 43. Rb7 {[%emt 0:01:11]} Re3 {[%emt 0:00:08]} 44. Rc7 {[%emt 0:00:22]} Kf8 {[%emt 0:00:06]} 45. Rd7 {[%emt 0:00:16]} Re4 {[%emt 0:08:32]} 46. Rb7 {[%emt 0:00:46]} Re3 {[%emt 0:00:03]} 47. Rd7 {[%emt 0:02:55]} Ke8 {[%emt 0:00:32]} 48. Rg7 {[%emt 0:01:29]} Rd3 {[%emt 0:06:51]} 49. Ke2 {[%emt 0:00:57]} Rg3 {[%emt 0:00:06]} 50. Kf2 {[%emt 0:00:10]} h4 {[%emt 0:00:06]} 51. Rb7 {[%emt 0:00:49]} e4 {[%emt 0:01:08]} 52. Kf1 {[%emt 0:03:15]} e3 {[%emt 0:03:18]} 53. Rb4 {[%emt 0:01:55]} d3 {[%emt 0:00:54]} 54. Rxh4 {[%emt 0:04:59]} e2+ {[%emt 0:00:35]} 55. Ke1 {[%emt 0:00:18]} Rxg2 {[%emt 0:00:22]} 56. Re4+ {[%emt 0:00:04]} Kf7 {[%emt 0:00:18]} 57. Kd2 {[%emt 0:00:17]} Rg1 {[%emt 0:00:17]} 58. Rf4+ {[%emt 0:00:54]} Kg7 {[%emt 0:00:16]} 59. Re4 {[%emt 0:00:10]} Rd1+ {[%emt 0:00:06]} 0-1

[Event "WYCC 2018 G16"]
[Site "Halkidiki"]
[Date "2018.10.21"]
[Round "3"]
[White "Bogdanic, Katarina"]
[Black "Hewawasam, H Y Nevanjee Dimany"]
[Result "1-0"]
[ECO "A05"]
[WhiteElo "2014"]
[BlackElo "1686"]
[Annotator "NA"]
[PlyCount "103"]
[EventDate "2018.10.20"]
[EventType "swiss"]
[EventCountry "GRE"]
[SourceTitle "playchess.com"]
[Source "ChessBase"]
[SourceQuality "1"]
[TimeControl "40/5400+30:1800+30"]

1. Nf3 {[%emt 0:00:00]} Nf6 {[%emt 0:00:00]} 2. g3 {[%emt 0:00:00]} e6 {[%emt 0:00:00]} 3. c4 {[%emt 0:00:00]} d5 {[%emt 0:00:31]} 4. d4 {[%emt 0:00:40]} Bb4+ {[%emt 0:00:30]} 5. Bd2 {[%emt 0:00:06]} Bd6 {[%emt 0:00:06]} 6. Nc3 {[%emt 0:00:30]} c6 {[%emt 0:00:09]} 7. Qc2 {[%emt 0:01:22]} O-O {[%emt 0:00:41]} 8. b3 {[%emt 0:03:45]} Nbd7 {[%emt 0:00:55]} 9. Bg2 {[%emt 0:01:46]} b6 {[%emt 0:00:55]} 10. O-O {[%emt 0:02:09]} Bb7 {[%emt 0:00:40]} 11. e4 dxe4 {[%emt 0:01:41]} 12. Nxe4 {[%emt 0:00:36]} Nxe4 {[%emt 0:00:11]} 13. Qxe4 {[%emt 0:00:05]} Qc7 {[%emt 0:03:23]} 14. Qc2 {[%emt 0:12:32]} Nf6 {[%emt 0:09:48]} 15. Bg5 {[%emt 0:02:02]} Be7 {[%emt 0:00:43]} 16. Rfd1 {[%emt 0:00:55]} Rac8 {[%emt 0:03:44]} 17. Rac1 {[%emt 0:01:06]} h6 {[%emt 0:02:22]} 18. Bf4 {[%emt 0:01:52]} Bd6 {[%emt 0:00:08]} 19. Bxd6 {[%emt 0:01:19]} Qxd6 {[%emt 0:01:50]} 20. Ne5 {[%emt 0:01:59]} Rfd8 {[%emt 0:12:23]} 21. Qe2 {[%emt 0:06:13]} Qe7 {[%emt 0:09:29]} 22. Qf3 {[%emt 0:02:04]} Qc7 23. b4 Ba8 {[%emt 0:04:55]} 24. Qe3 {[%emt 0:06:28]} Bb7 {[%emt 0:19:23]} 25. Qa3 {[%emt 0:19:47]} Ne8 26. b5 Ba8 {[%emt 0:13:00]} 27. Bxc6 {[%emt 0:04:23]} f6 {[%emt 0:00:58]} 28. Ng6 Kf7 {[%emt 0:00:06]} 29. Bxa8 {[%emt 0:06:27]} Rxa8 {[%emt 0:00:45]} 30. Nf4 {[%emt 0:03:20]} g5 {[%emt 0:02:19]} 31. Ng2 {[%emt 0:01:43]} Qb7 {[%emt 0:00:57]} 32. Qd3 {[%emt 0:04:27]} Ng7 {[%emt 0:01:11]} 33. Ne3 h5 34. d5 {[%emt 0:03:12]} Qc8 {[%emt 0:02:07]} 35. dxe6+ {[%emt 0:02:53]} Qxe6 {[%emt 0:00:18]} 36. Nd5 {[%emt 0:00:54]} Qg4 {[%emt 0:02:58]} 37. Qc3 {[%emt 0:02:23]} Qf5 {[%emt 0:00:58]} 38. Rd3 {[%emt 0:01:10]} g4 {[%emt 0:00:44]} 39. Re1 {[%emt 0:00:54]} Ne6 {[%emt 0:00:32]} 40. Rde3 {[%emt 0:00:00]} Re8 {[%emt 0:00:00]} 41. h4 {[%emt 0:03:33]} Rad8 {[%emt 0:07:44]} 42. f3 {[%emt 0:03:02]} Nc5 {[%emt 0:06:57]} 43. fxg4 Rxe3 {[%emt 0:00:52]} 44. Qxe3 {[%emt 0:04:20]} hxg4 {[%emt 0:04:49]} 45. Qe7+ {[%emt 0:01:55]} Kg6 {[%emt 0:00:11]} 46. Qxd8 {[%emt 0:00:48]} Qf3 {[%emt 0:00:24]} 47. Qg8+ {[%emt 0:02:15]} Kh6 {[%emt 0:00:08]} 48. Qh8+ {[%emt 0:00:13]} Kg6 {[%emt 0:00:06]} 49. Nf4+ {[%emt 0:00:43]} Kf7 {[%emt 0:00:34]} 50. Qe8+ {[%emt 0:00:05]} Kg7 {[%emt 0:00:08]} 51. Re7+ {[%emt 0:00:13]} Kh6 {[%emt 0:00:10]} 52. Qg6# {[%emt 0:00:05]} 1-0

[Event "WYCC 2018 G16"]
[Site "Halkidiki"]
[Date "2018.10.21"]
[Round "3"]
[White "Jarocka, Liwia"]
[Black "Goltseva, Ekaterina"]
[Result "0-1"]
[ECO "C92"]
[WhiteElo "1990"]
[BlackElo "2169"]
[Annotator "NA"]
[PlyCount "92"]
[EventDate "2018.10.20"]
[EventType "swiss"]
[EventCountry "GRE"]
[SourceTitle "playchess.com"]
[Source "ChessBase"]
[SourceQuality "1"]
[TimeControl "40/5400+30:1800+30"]

1. e4 {[%emt 0:00:00]} e5 {[%emt 0:00:00]} 2. Nf3 {[%emt 0:00:00]} Nc6 {[%emt 0:00:00]} 3. Bb5 {[%emt 0:00:00]} a6 {[%emt 0:00:00]} 4. Ba4 {[%emt 0:00:00]} Nf6 {[%emt 0:00:00]} 5. O-O {[%emt 0:00:01]} Be7 {[%emt 0:00:09]} 6. Re1 {[%emt 0:00:10]} b5 {[%emt 0:00:07]} 7. Bb3 {[%emt 0:00:08]} d6 {[%emt 0:00:14]} 8. c3 {[%emt 0:00:06]} O-O {[%emt 0:00:08]} 9. h3 {[%emt 0:00:07]} Nd7 {[%emt 0:00:26]} 10. d4 {[%emt 0:00:16]} Bf6 {[%emt 0:00:05]} 11. d5 {[%emt 0:01:45]} Ne7 {[%emt 0:00:28]} 12. a4 {[%emt 0:00:42]} Bb7 {[%emt 0:00:52]} 13. Be3 {[%emt 0:00:44]} Qb8 {[%emt 0:02:13]} 14. Nbd2 {[%emt 0:06:07]} c6 {[%emt 0:02:31]} 15. dxc6 {[%emt 0:00:48]} Bxc6 {[%emt 0:00:26]} 16. axb5 {[%emt 0:01:50]} axb5 {[%emt 0:00:59]} 17. Bc2 {[%emt 0:02:03]} Qb7 {[%emt 0:12:50]} 18. Rxa8 {[%emt 0:15:37]} Rxa8 {[%emt 0:00:48]} 19. b4 {[%emt 0:04:59]} d5 {[%emt 0:07:45]} 20. Qb1 {[%emt 0:01:28]} h6 {[%emt 0:03:54]} 21. Nh2 {[%emt 0:09:40]} d4 {[%emt 0:09:34]} 22. cxd4 {[%emt 0:00:17]} exd4 {[%emt 0:00:07]} 23. Bf4 {[%emt 0:00:12]} Ng6 {[%emt 0:08:13]} 24. Bd6 {[%emt 0:03:36]} d3 {[%emt 0:11:06]} 25. Bd1 {[%emt 0:11:00]} Rd8 {[%emt 0:01:41]} 26. Nhf3 {[%emt 0:04:43]} Nde5 {[%emt 0:06:51]} 27. Nxe5 {[%emt 0:01:14]} Nxe5 {[%emt 0:04:29]} 28. Bxe5 {[%emt 0:06:18]} Bxe5 {[%emt 0:00:22]} 29. Bf3 {[%emt 0:08:53]} Bc3 {[%emt 0:01:45]} 30. Qc1 {[%emt 0:03:15]} Bxb4 {[%emt 0:00:27]} 31. Re3 {[%emt 0:01:28]} Be7 {[%emt 0:05:22]} 32. Qb1 {[%emt 0:01:31]} Qd7 {[%emt 0:01:34]} 33. Bg4 {[%emt 0:00:37]} Qd4 {[%emt 0:02:21]} 34. Nf3 {[%emt 0:01:11]} Qc3 {[%emt 0:00:38]} 35. Ne1 {[%emt 0:00:41]} b4 {[%emt 0:05:37]} 36. Be2 {[%emt 0:02:47]} Bc5 {[%emt 0:04:57]} 37. Rxd3 {[%emt 0:00:48]} Rxd3 {[%emt 0:00:09]} 38. Bxd3 {[%emt 0:00:15]} Qd2 {[%emt 0:02:43]} 39. Nf3 {[%emt 0:00:17]} Qxf2+ {[%emt 0:00:14]} 40. Kh1 {[%emt 0:00:00]} Bd7 {[%emt 0:00:00]} 41. Ne5 {[%emt 0:09:34]} Be6 {[%emt 0:03:57]} 42. Bc4 {[%emt 0:00:20]} Bxc4 {[%emt 0:01:32]} 43. Nxc4 {[%emt 0:00:06]} b3 {[%emt 0:01:37]} 44. Kh2 {[%emt 0:01:23]} Qc2 {[%emt 0:01:03]} 45. Qf1 {[%emt 0:00:07]} b2 {[%emt 0:01:08]} 46. Ne5 {[%emt 0:00:27]} Bf2 {[%emt 0:00:38]} 0-1

[Event "WYCC 2018 G16"]
[Site "Halkidiki"]
[Date "2018.10.21"]
[Round "3"]
[White "Aciu, Malina-Andreea"]
[Black "Simkunaite, Gabija"]
[Result "1/2-1/2"]
[ECO "B32"]
[WhiteElo "1976"]
[BlackElo "1650"]
[Annotator "NA"]
[PlyCount "94"]
[EventDate "2018.10.20"]
[EventType "swiss"]
[EventCountry "GRE"]
[SourceTitle "playchess.com"]
[Source "ChessBase"]
[SourceQuality "1"]
[TimeControl "40/5400+30:1800+30"]

1. e4 {[%emt 0:00:00]} c5 {[%emt 0:00:00]} 2. Nf3 {[%emt 0:00:00]} Nc6 {[%emt 0:00:04]} 3. d4 {[%emt 0:00:00]} cxd4 {[%emt 0:00:27]} 4. Nxd4 {[%emt 0:00:00]} e5 {[%emt 0:00:17]} 5. Nb3 {[%emt 0:00:00]} Nf6 {[%emt 0:01:43]} 6. Nc3 {[%emt 0:01:34]} Bb4 {[%emt 0:02:42]} 7. Bd3 {[%emt 0:02:24]} Bxc3+ {[%emt 0:03:01]} 8. bxc3 {[%emt 0:00:10]} O-O {[%emt 0:03:39]} 9. Bg5 {[%emt 0:05:53]} d6 {[%emt 0:08:34]} 10. O-O {[%emt 0:00:47]} Be6 {[%emt 0:02:47]} 11. Kh1 {[%emt 0:08:08]} h6 {[%emt 0:03:00]} 12. Bh4 {[%emt 0:00:12]} g5 {[%emt 0:02:55]} 13. Bg3 {[%emt 0:00:19]} Ne7 {[%emt 0:01:12]} 14. h4 {[%emt 0:19:48]} Ng6 {[%emt 0:03:07]} 15. h5 {[%emt 0:00:19]} Nf4 {[%emt 0:00:55]} 16. Bxf4 {[%emt 0:01:20]} exf4 {[%emt 0:00:09]} 17. Nd4 {[%emt 0:09:52]} Rc8 {[%emt 0:08:15]} 18. g3 {[%emt 0:07:06]} Bg4 {[%emt 0:04:02]} 19. f3 {[%emt 0:18:46]} Bh3 {[%emt 0:05:32]} 20. gxf4 {[%emt 0:02:19]} Bxf1 {[%emt 0:02:11]} 21. Qxf1 {[%emt 0:01:14]} Nh7 {[%emt 0:04:44]} 22. Nf5 {[%emt 0:01:49]} Qf6 {[%emt 0:01:14]} 23. e5 {[%emt 0:06:34]} dxe5 {[%emt 0:01:27]} 24. fxe5 {[%emt 0:00:07]} Qe6 {[%emt 0:00:42]} 25. Qe1 {[%emt 0:03:39]} Rc5 {[%emt 0:03:27]} 26. Qe4 {[%emt 0:00:27]} Kh8 {[%emt 0:02:16]} 27. Nd4 {[%emt 0:03:45]} Qh3+ {[%emt 0:02:01]} 28. Kg1 {[%emt 0:00:03]} f5 {[%emt 0:00:10]} 29. Nxf5 {[%emt 0:01:01]} Rxf5 {[%emt 0:00:11]} 30. Qxf5 {[%emt 0:00:39]} Qxf5 {[%emt 0:00:04]} 31. Bxf5 {[%emt 0:00:04]} Rxe5 {[%emt 0:00:04]} 32. Bxh7 {[%emt 0:00:44]} Kxh7 {[%emt 0:00:01]} 33. Rb1 {[%emt 0:00:01]} b6 {[%emt 0:00:20]} 34. Kf2 {[%emt 0:00:05]} Ra5 {[%emt 0:00:05]} 35. Rb2 {[%emt 0:01:48]} Ra3 {[%emt 0:00:39]} 36. c4 {[%emt 0:04:29]} Rc3 {[%emt 0:00:29]} 37. Kg3 {[%emt 0:01:12]} Rxc4 {[%emt 0:00:09]} 38. Rb3 {[%emt 0:01:13]} Rxc2 {[%emt 0:00:16]} 39. Ra3 {[%emt 0:00:02]} a5 {[%emt 0:00:54]} 40. Rb3 {[%emt 0:00:00]} Rc6 {[%emt 0:00:00]} 41. f4 {[%emt 0:03:34]} Kg7 {[%emt 0:02:38]} 42. Rb5 {[%emt 0:03:11]} Kf6 {[%emt 0:02:15]} 43. fxg5+ {[%emt 0:04:57]} hxg5 {[%emt 0:00:01]} 44. Kg4 {[%emt 0:00:07]} Rd6 {[%emt 0:01:39]} 45. Rf5+ {[%emt 0:00:44]} Kg7 {[%emt 0:00:23]} 46. Rxg5+ {[%emt 0:01:02]} Kh6 {[%emt 0:00:19]} 47. Rb5 {[%emt 0:00:55]} Rd4+ {[%emt 0:00:24]} 1/2-1/2

[Event "WYCC 2018 G16"]
[Site "Halkidiki"]
[Date "2018.10.21"]
[Round "3"]
[White "Djidjeli, Sarah"]
[Black "Bach, Ngoc Thuy Duong"]
[Result "0-1"]
[ECO "B92"]
[WhiteElo "1952"]
[BlackElo "2161"]
[Annotator "NA"]
[PlyCount "84"]
[EventDate "2018.10.20"]
[EventType "swiss"]
[EventCountry "GRE"]
[SourceTitle "playchess.com"]
[Source "ChessBase"]
[SourceQuality "1"]
[TimeControl "40/5400+30:1800+30"]

1. e4 {[%emt 0:00:00]} c5 {[%emt 0:00:00]} 2. Nf3 {[%emt 0:00:00]} d6 {[%emt 0:00:00]} 3. d4 {[%emt 0:00:00]} cxd4 {[%emt 0:00:00]} 4. Nxd4 {[%emt 0:00:00]} Nf6 {[%emt 0:00:00]} 5. Nc3 {[%emt 0:00:00]} a6 {[%emt 0:00:00]} 6. Be2 {[%emt 0:00:09]} e5 {[%emt 0:00:00]} 7. Nb3 {[%emt 0:00:05]} Be7 {[%emt 0:00:09]} 8. Be3 {[%emt 0:00:08]} Be6 {[%emt 0:02:11]} 9. Nd5 {[%emt 0:00:26]} Nxd5 {[%emt 0:04:48]} 10. exd5 {[%emt 0:00:20]} Bf5 {[%emt 0:04:06]} 11. O-O {[%emt 0:02:29]} O-O {[%emt 0:00:24]} 12. Qd2 {[%emt 0:00:16]} Nd7 {[%emt 0:05:17]} 13. Na5 {[%emt 0:04:47]} Qc8 {[%emt 0:06:03]} 14. c4 {[%emt 0:12:48]} Bd8 {[%emt 0:02:55]} 15. Rac1 {[%emt 0:13:11]} Rb8 {[%emt 0:06:38]} 16. Rfd1 {[%emt 0:06:04]} Bg6 {[%emt 0:06:24]} 17. Nb3 {[%emt 0:01:21]} b6 {[%emt 0:00:33]} 18. Na1 {[%emt 0:00:44]} a5 {[%emt 0:04:02]} 19. a3 {[%emt 0:06:02]} a4 {[%emt 0:04:12]} 20. f4 {[%emt 0:11:34]} Bf6 {[%emt 0:06:39]} 21. Rf1 {[%emt 0:01:22]} exf4 {[%emt 0:00:28]} 22. Bxf4 {[%emt 0:00:26]} Qc7 {[%emt 0:00:55]} 23. b4 {[%emt 0:03:34]} axb3 {[%emt 0:01:50]} 24. Nxb3 {[%emt 0:00:08]} Nc5 {[%emt 0:03:02]} 25. Nxc5 {[%emt 0:01:12]} Qxc5+ {[%emt 0:00:20]} 26. Be3 {[%emt 0:01:10]} Qxa3 {[%emt 0:02:46]} 27. Rxf6 {[%emt 0:02:52]} gxf6 {[%emt 0:00:04]} 28. Bd4 {[%emt 0:00:06]} Rfe8 {[%emt 0:00:25]} 29. Rf1 {[%emt 0:04:28]} Re4 {[%emt 0:04:29]} 30. Bf3 {[%emt 0:08:17]} Rxd4 {[%emt 0:02:39]} 31. Qxd4 {[%emt 0:00:05]} Qc5 {[%emt 0:00:10]} 32. Qf2 {[%emt 0:01:12]} Qxc4 33. Be2 {[%emt 0:00:23]} Qxd5 {[%emt 0:01:38]} 34. Qxf6 {[%emt 0:00:14]} Qe5 {[%emt 0:00:24]} 35. Qf3 {[%emt 0:01:47]} Re8 {[%emt 0:00:28]} 36. Rf2 {[%emt 0:04:10]} Qe3 {[%emt 0:02:31]} 37. Qg4 {[%emt 0:02:28]} Re4 {[%emt 0:02:13]} 38. Qc8+ {[%emt 0:01:11]} Kg7 {[%emt 0:00:16]} 39. g3 {[%emt 0:01:09]} Rb4 {[%emt 0:01:35]} 40. Qd7 {[%emt 0:00:00]} Rb1+ {[%emt 0:00:00]} 41. Kg2 {[%emt 0:07:29]} Be4+ {[%emt 0:01:51]} 42. Kh3 {[%emt 0:01:26]} Qxf2 {[%emt 0:00:33]} 0-1

[Event "WYCC 2018 G16"]
[Site "Halkidiki"]
[Date "2018.10.21"]
[Round "3"]
[White "Hajiyeva, Laman"]
[Black "Smith, Elani"]
[Result "1-0"]
[ECO "A57"]
[WhiteElo "1916"]
[BlackElo "1393"]
[Annotator "NA"]
[PlyCount "65"]
[EventDate "2018.10.20"]
[EventType "swiss"]
[EventCountry "GRE"]
[SourceTitle "playchess.com"]
[Source "ChessBase"]
[SourceQuality "1"]
[TimeControl "40/5400+30:1800+30"]

1. d4 {[%emt 0:00:00]} Nf6 {[%emt 0:00:00]} 2. c4 {[%emt 0:00:00]} c5 {[%emt 0:00:00]} 3. d5 {[%emt 0:00:00]} b5 {[%emt 0:00:00]} 4. cxb5 {[%emt 0:00:00]} a6 {[%emt 0:00:09]} 5. b6 {[%emt 0:00:00]} Qxb6 {[%emt 0:02:29]} 6. Nc3 {[%emt 0:00:00]} d6 {[%emt 0:00:39]} 7. e4 {[%emt 0:00:01]} g6 {[%emt 0:00:33]} 8. Nf3 {[%emt 0:00:10]} Bg7 {[%emt 0:01:23]} 9. Nd2 {[%emt 0:00:07]} O-O {[%emt 0:00:57]} 10. Be2 {[%emt 0:00:27]} Nbd7 {[%emt 0:01:38]} 11. Nc4 {[%emt 0:00:12]} Qd8 {[%emt 0:00:13]} 12. O-O {[%emt 0:00:27]} Nb6 {[%emt 0:00:51]} 13. Ne3 {[%emt 0:03:39]} Bd7 {[%emt 0:03:41]} 14. a4 {[%emt 0:01:32]} a5 {[%emt 0:01:36]} 15. f4 {[%emt 0:05:06]} Qc7 {[%emt 0:04:17]} 16. Bd2 {[%emt 0:07:07]} Rfb8 {[%emt 0:03:06]} 17. Qc2 {[%emt 0:02:10]} Ne8 {[%emt 0:01:04]} 18. Nb5 {[%emt 0:09:02]} Qb7 {[%emt 0:00:35]} 19. Nc3 {[%emt 0:06:04]} Nc7 {[%emt 0:02:13]} 20. f5 {[%emt 0:16:16]} Na6 {[%emt 0:02:03]} 21. fxg6 {[%emt 0:01:31]} fxg6 {[%emt 0:00:11]} 22. Ng4 {[%emt 0:08:56]} Bxg4 {[%emt 0:03:15]} 23. Bxg4 {[%emt 0:00:38]} Rf8 {[%emt 0:00:12]} 24. Qd3 {[%emt 0:09:13]} Nb4 {[%emt 0:01:49]} 25. Qh3 {[%emt 0:00:26]} Nc4 {[%emt 0:00:30]} 26. Bh6 {[%emt 0:01:56]} Nxb2 {[%emt 0:01:41]} 27. Rab1 {[%emt 0:09:13]} Nc4 {[%emt 0:01:01]} 28. Ne2 {[%emt 0:02:34]} Qc7 {[%emt 0:04:56]} 29. Nf4 {[%emt 0:01:42]} Bxh6 {[%emt 0:11:12]} 30. Qxh6 {[%emt 0:01:15]} e5 {[%emt 0:00:13]} 31. Be6+ {[%emt 0:00:31]} Rf7 {[%emt 0:00:59]} 32. Nxg6 {[%emt 0:00:12]} hxg6 {[%emt 0:02:37]} 33. Qxg6+ {[%emt 0:00:04]} 1-0

[Event "WYCC 2018 G16"]
[Site "Halkidiki"]
[Date "2018.10.21"]
[Round "3"]
[White "Nemcova, Karin"]
[Black "Cohen, Yael"]
[Result "1-0"]
[ECO "B78"]
[WhiteElo "1888"]
[BlackElo "1602"]
[Annotator "NA"]
[PlyCount "51"]
[EventDate "2018.10.20"]
[EventType "swiss"]
[EventCountry "GRE"]
[SourceTitle "playchess.com"]
[Source "ChessBase"]
[SourceQuality "1"]
[TimeControl "40/5400+30:1800+30"]

1. e4 c5 {[%emt 0:00:00]} 2. Nf3 {[%emt 0:00:00]} d6 {[%emt 0:00:00]} 3. d4 {[%emt 0:00:00]} cxd4 {[%emt 0:00:00]} 4. Nxd4 {[%emt 0:00:00]} Nf6 {[%emt 0:00:09]} 5. Nc3 {[%emt 0:00:00]} g6 {[%emt 0:00:17]} 6. Be3 {[%emt 0:00:08]} Bg7 {[%emt 0:00:20]} 7. f3 {[%emt 0:00:09]} Nc6 {[%emt 0:00:35]} 8. Qd2 {[%emt 0:00:17]} O-O {[%emt 0:00:23]} 9. Bc4 {[%emt 0:00:12]} Bd7 {[%emt 0:00:47]} 10. O-O-O {[%emt 0:00:16]} Rc8 {[%emt 0:00:26]} 11. Bb3 {[%emt 0:00:13]} Ne5 {[%emt 0:00:40]} 12. Kb1 {[%emt 0:02:37]} Nc4 {[%emt 0:01:23]} 13. Bxc4 {[%emt 0:00:08]} Rxc4 {[%emt 0:00:07]} 14. g4 {[%emt 0:05:45]} a6 {[%emt 0:03:24]} 15. h4 {[%emt 0:04:26]} b5 {[%emt 0:03:01]} 16. h5 {[%emt 0:03:59]} Qc7 {[%emt 0:04:35]} 17. hxg6 {[%emt 0:01:26]} fxg6 {[%emt 0:00:19]} 18. Nd5 {[%emt 0:14:02]} Nxd5 {[%emt 0:02:28]} 19. exd5 {[%emt 0:00:16]} Bxd4 {[%emt 0:17:44]} 20. Bxd4 {[%emt 0:00:38]} e5 {[%emt 0:11:13]} 21. dxe6 {[%emt 0:04:51]} Bxe6 {[%emt 0:00:30]} 22. b3 {[%emt 0:01:44]} Rc6 {[%emt 0:04:11]} 23. Bb2 {[%emt 0:01:58]} Qb6 {[%emt 0:06:13]} 24. Rxh7 {[%emt 0:08:08]} Kxh7 {[%emt 0:08:00]} 25. Rh1+ {[%emt 0:00:14]} Kg8 {[%emt 0:01:51]} 26. Qg5 {[%emt 0:00:20]} 1-0